bitfinex-derivatives/quotes_ETHF0:USTF0_20241229
["timestamp","ask_amount","ask_price","bid_price","bid_amount"]
[1735493917266,0.75346,3356.3,3356.2,4.8219]
[1735493917564,0.75346,3356.3,3356.2,5.12037]
[1735493918066,0.75346,3356.3,3356.2,3.92737]
[1735493920165,0.75346,3356.3,3356.2,3.6289]
[1735493920967,0.75346,3356.3,3356.2,3.92737]
[1735493921866,0.75346,3356.3,3356.2,0.71957]
[1735493923073,0.455,3356.3,3356.2,0.71957]
[1735493923273,3.95386,3356.8,3356.2,0.4211]
[1735493923274,3.2078,3356.8,3356.2,0.4211]
[1735493923473,0.29846,3356.5,3356.4,0.29845]
[1735493924375,3.2078,3356.8,3356.2,0.4211]
[1735493924574,0.29843,3356.7,3356.6,0.29843]
[1735493925465,3.2078,3356.8,3356.7,0.29843]
[1735493925669,4.23279349,3357.3,3357.1,0.29838]
[1735493925870,3.93441349,3357.3,3357.1,0.29838]
[1735493926165,3.80759349,3357.3,3357.2,0.29838]
[1735493926369,3.80758349,3357.3,3357.2,0.29838]
[1735493926876,3.50921349,3357.3,3357.2,0.29838]
[1735493927272,0.4381,3357.4,3357.3,0.29837]
[1735493928568,0.73647,3357.4,3357.3,0.29837]
[1735493928972,0.73647,3357.4,3357.0,5.46191062]
[1735493929174,0.29837,3357.3,3357.0,5.46191062]
[1735493929474,0.4381,3357.4,3357.0,5.46191062]
[1735493929669,0.73647,3357.4,3357.2,0.29838]
[1735493929974,0.29836,3357.5,3357.3,0.29837]
[1735493930664,0.75665,3357.6,3357.4,0.29836]
[1735493930867,0.4633,3357.7,3357.0,5.46191062]
[1735493930868,0.76164,3357.7,3357.3,2.25411062]
[1735493931171,0.4633,3357.7,3357.6,2.55246062]
[1735493931375,3.2078,3357.8,3357.6,2.55246062]
[1735493931376,3.2078,3357.8,3357.7,0.29834]
[1735493935475,0.29832,3358.0,3357.8,0.29832]
[1735493937168,3.6282,3358.1,3357.6,3.44611062]
[1735493937374,0.29834,3357.8,3357.6,3.44611062]
[1735493937579,0.29834,3357.7,3357.6,3.44611062]
[1735493938481,0.29834,3357.7,3357.6,3.74446062]
[1735493941178,0.74579,3358.0,3357.5,1.192]
[1735493941375,0.29835,3357.6,3357.5,1.49036]
[1735493941983,0.29835,3357.6,3357.5,0.29836]
[1735493944378,0.29834,3357.7,3357.6,0.29835]
[1735493944576,0.29835,3357.6,3357.5,0.29835]
[1735493944885,0.75215,3357.6,3357.5,0.29835]
[1735493945279,0.4538,3357.6,3357.5,0.29835]
[1735493945476,3.6282,3358.1,3357.4,1.192]
[1735493945689,0.4538,3358.0,3357.6,2.25411062]
[1735493945889,0.29833,3357.9,3357.7,0.29834]
[1735493946488,0.29833,3357.8,3357.7,0.29834]
[1735493947093,0.29833,3357.8,3357.6,2.55245062]
[1735493947294,0.29834,3357.7,3357.6,2.55245062]
[1735493947501,0.29835,3357.6,3357.5,0.29835]
[1735493947792,0.29835,3357.6,3357.5,1.191]
[1735493949683,0.29835,3357.6,3357.5,1.48935]
[1735493949890,0.29834,3357.7,3357.6,0.29834]
[1735493950085,0.4538,3358.0,3357.5,1.191]
[1735493950290,0.29835,3357.6,3357.5,1.48935]
[1735493950497,0.29835,3357.6,3357.5,1.191]
[1735493951594,0.29835,3357.6,3357.5,1.48936]
[1735493952796,0.29834,3357.7,3357.6,0.29835]
[1735493953101,0.29833,3357.8,3357.7,0.29833]
[1735493954994,3.2078,3357.9,3357.6,0.4344]
[1735493955198,3.2078,3357.9,3357.8,0.29833]
[1735493956401,3.2078,3357.9,3357.7,0.8771]
[1735493956402,0.4204,3358.1,3357.7,0.8771]
[1735493956701,0.4204,3358.1,3358.0,0.29831]
[1735493957104,3.95399,3358.3,3357.9,3.2078]
[1735493957301,4.1002,3358.7,3357.9,5.46191062]
[1735493957603,0.29827,3358.6,3358.5,0.29826]
[1735493958197,4.0794,3358.7,3358.6,0.29826]
[1735493958398,4.0794,3358.7,3358.2,2.25411062]
[1735493958703,4.0794,3358.7,3358.5,0.29826]
[1735493958704,4.37765,3358.7,3358.5,0.29826]
[1735493958900,4.37765,3358.7,3358.3,2.1017]
[1735493959202,4.37765,3358.7,3358.6,0.29826]
[1735493959505,2.33604761,3358.9,3358.8,0.29824]
[1735493960004,0.29823,3359.0,3358.8,0.29824]
[1735493960005,0.4391,3359.0,3358.8,0.29824]
[1735493960200,0.73733,3359.0,3358.8,0.29824]
[1735493960396,0.4391,3359.0,3358.6,3.2078]
[1735493960601,0.29825,3358.8,3358.6,0.29826]
[1735493963104,0.4391,3359.0,3358.6,0.29826]
[1735493963798,0.4391,3359.0,3358.5,2.25411062]
[1735493964002,0.29824,3358.9,3358.8,0.29824]
[1735493964198,0.29823,3358.9,3358.8,0.29824]
[1735493964404,3.6436,3359.4,3358.7,3.2078]
[1735493964600,0.7509,3359.3,3359.1,0.29821]
[1735493965199,0.4527,3359.3,3358.9,0.8963]
[1735493965405,0.4527,3359.3,3359.2,0.29821]
[1735493965601,3.2078,3359.4,3359.3,0.2982]
[1735493965805,0.29818,3359.5,3359.2,3.2078]
[1735493966005,0.29818,3359.5,3359.3,0.29819]
[1735493966198,0.9114,3359.7,3359.4,0.29818]
[1735493966199,0.29817,3359.6,3359.4,0.29818]
[1735493966404,1.20957,3359.7,3359.5,0.29818]
[1735493966607,0.74676,3359.7,3359.5,0.29817]
[1735493968108,0.4486,3359.7,3359.3,0.4516]
[1735493968299,0.74005,3359.9,3359.4,2.25411062]
[1735493968502,0.4419,3359.9,3359.5,0.872]
[1735493968697,0.29814,3360.0,3359.8,0.29815]
[1735493968905,0.29814,3360.0,3359.9,0.4398]
[1735493970602,0.29816,3359.7,3359.6,3.2078]
[1735493974111,0.29817,3359.6,3359.5,1.3118]
[1735493980010,0.29817,3359.6,3359.5,1.60998]
[1735493981013,0.4448,3360.1,3359.5,1.60998]
[1735493981211,0.29817,3359.7,3359.6,0.29817]
[1735493982822,0.4448,3360.1,3359.5,1.60998]
[1735493982823,0.29817,3359.6,3359.5,1.60998]
[1735493984120,0.29817,3359.6,3359.5,1.3118]
[1735493984322,0.29817,3359.6,3359.5,1.60998]
[1735493985515,0.29817,3359.6,3359.5,0.8828]
[1735493985721,0.29821,3359.1,3359.0,0.4563]
[1735493985920,0.74543,3359.6,3358.9,1.19]
[1735493985921,0.29822,3359.0,3358.9,1.19]
[1735493986116,0.75882,3359.0,3358.9,1.19]
[1735494001033,0.4606,3359.0,3358.5,2.55237062]
[1735494001231,3.2078,3358.8,3358.3,4.68144205]
[1735494001437,0.29828,3358.4,3358.3,4.68144205]
[1735494002334,0.29829,3358.2,3358.0,2.36811]
[1735494003545,0.2983,3358.1,3358.0,2.36811]
[1735494003841,3.2078,3358.8,3358.0,5.2776]
[1735494004137,0.29829,3358.3,3358.2,2.25411062]
[1735494004339,0.2983,3358.1,3358.0,5.2776]
[1735494004829,0.2983,3358.1,3358.0,5.57591]
[1735494005031,0.2983,3358.1,3358.0,2.36811]
[1735494005434,3.6461,3358.8,3358.0,5.2776]
[1735494005641,0.29827,3358.6,3358.5,0.29827]
[1735494005836,0.29827,3358.6,3358.5,0.4448]
[1735494006742,0.4383,3358.8,3358.1,9.27251687]
[1735494007039,0.29829,3358.3,3358.2,4.68144205]
[1735494007742,0.29827,3358.5,3358.3,0.29829]
[1735494007942,0.4383,3358.8,3358.4,2.25411062]
[1735494008143,0.29826,3358.6,3358.5,0.29827]
[1735494008841,0.29825,3358.7,3358.6,0.29825]
[1735494009038,2.77434761,3358.8,3358.4,2.25411062]
[1735494009242,0.29826,3358.6,3358.5,0.29826]
[1735494009445,0.29827,3358.5,3358.4,2.25411062]
[1735494009844,0.29827,3358.5,3358.4,3.44411062]
[1735494010435,0.4383,3358.8,3358.4,3.44411062]
[1735494010641,0.29827,3358.5,3358.4,3.74238062]
[1735494011347,0.4383,3358.8,3358.4,3.74238062]
[1735494011348,0.4383,3358.8,3358.4,3.44411062]
[1735494011643,0.29826,3358.6,3358.5,0.29827]
[1735494013241,0.29825,3358.8,3358.7,0.29824]
[1735494014141,3.2078,3359.0,3358.4,3.44411062]
[1735494014341,0.29827,3358.6,3358.5,0.29827]
[1735494016146,3.2078,3359.0,3358.4,3.74238062]
[1735494016147,0.29827,3358.5,3358.4,3.74238062]
[1735494017445,0.29826,3358.6,3358.5,0.29826]
[1735494018654,3.2078,3359.0,3358.4,3.44411062]
[1735494018847,0.29825,3358.7,3358.5,0.29827]
[1735494019045,0.29823,3358.9,3358.8,0.29824]
[1735494019255,3.50603,3359.0,3358.9,0.29823]
[1735494019946,3.2078,3359.0,3358.9,0.29823]
[1735494021348,0.2982,3359.3,3359.2,0.29821]
[1735494021751,5.54384761,3359.5,3359.1,2.25411062]
[1735494022054,5.54384761,3359.5,3359.4,0.29819]
[1735494022055,3.50598,3359.5,3359.4,0.29819]
[1735494022448,0.29819,3359.4,3359.3,0.29819]
[1735494023051,3.2078,3359.5,3359.2,0.4523]
[1735494023247,3.2078,3359.5,3359.4,0.29819]
[1735494023248,3.50599,3359.5,3359.4,0.29819]
[1735494023755,3.2078,3359.5,3359.4,0.29819]
[1735494024055,3.50598,3359.5,3359.4,0.29819]
[1735494024452,3.2078,3359.5,3359.4,0.29819]
[1735494024652,2.33604761,3360.0,3359.4,2.25411062]
[1735494024948,0.29814,3359.9,3359.7,0.29816]
[1735494025254,0.29817,3359.6,3359.5,0.29818]
[1735494026353,0.29817,3359.7,3359.5,0.29818]
[1735494026548,0.451,3360.0,3359.5,0.29818]
[1735494026754,0.451,3360.0,3359.3,3.6313]
[1735494026951,0.29819,3359.4,3359.3,8.30303113]
[1735494027153,0.29819,3359.4,3359.3,7.87953113]
[1735494028057,0.29819,3359.4,3359.3,4.67173113]
[1735494028248,2.33986449,3359.8,3359.2,4.8501]
[1735494028448,0.2982,3359.3,3359.2,5.1483]
[1735494029047,0.2982,3359.3,3359.2,3.9583]
[1735494030957,0.2982,3359.3,3359.2,3.2078]
[1735494032964,0.29821,3359.1,3359.0,0.29822]
[1735494033667,0.76031,3359.1,3359.0,0.29822]
[1735494034267,0.29821,3359.1,3359.0,0.29822]
[1735494034568,0.29821,3359.1,3359.0,0.76002]
[1735494034870,0.29821,3359.2,3359.0,0.76002]
[1735494035062,0.29821,3359.2,3359.1,0.29821]
[1735494036366,0.29821,3359.2,3359.0,0.4618]
[1735494036574,0.29821,3359.2,3359.0,5.43175113]
[1735494036762,0.29821,3359.2,3359.0,5.13353113]
[1735494036963,0.29821,3359.2,3359.1,0.29821]
[1735494039068,0.29821,3359.1,3359.0,5.43175113]
[1735494039269,0.29821,3359.1,3359.0,4.67173113]
[1735494039470,0.29822,3359.0,3358.9,4.96996113]
[1735494039675,0.73672,3359.0,3358.9,4.67173113]
[1735494040471,0.73672,3359.0,3358.9,4.96996113]
[1735494040971,0.73672,3359.0,3358.9,0.29823]
[1735494044469,5.54766449,3359.3,3358.8,2.25411062]
[1735494044674,3.506,3359.3,3359.2,0.29821]
[1735494045975,0.2982,3359.3,3359.2,0.29821]
[1735494046574,0.29821,3359.2,3359.1,0.29821]
[1735494048171,0.2982,3359.3,3359.2,0.2982]
[1735494049380,0.29822,3359.1,3359.0,0.29822]
[1735494049878,0.29821,3359.2,3359.1,0.29821]
[1735494050576,0.2982,3359.3,3359.2,0.2982]
[1735494052171,2.33986449,3359.4,3359.3,0.2982]
[1735494053578,0.29818,3359.5,3359.4,0.29819]
[1735494054777,3.07854449,3359.6,3359.5,0.29818]
[1735494056076,0.29818,3359.5,3359.4,0.29818]
[1735494057374,0.73867,3359.6,3359.5,0.29818]
[1735494057878,3.07853449,3359.6,3359.5,0.29818]
[1735494058380,3.07853449,3359.6,3359.3,6.19929401]
[1735494058381,2.78036449,3359.6,3359.3,6.19929401]
[1735494058579,0.29818,3359.5,3359.4,0.29818]
[1735494059080,0.29818,3359.5,3359.4,4.96991113]
[1735494060176,0.4405,3359.6,3359.4,4.67173113]
[1735494060383,5.54766449,3359.7,3359.5,1.06536288]
[1735494060583,5.54766449,3359.7,3359.6,0.29817]
[1735494060880,5.84582449,3359.7,3359.6,0.73777]
[1735494061078,0.29818,3359.5,3359.4,4.67173113]
[1735494061680,0.29818,3359.5,3359.4,7.0075967]
[1735494063183,2.33986449,3359.5,3359.3,5.43792544]
[1735494063380,0.75539,3359.4,3359.3,5.43792544]
[1735494064381,0.75539,3359.4,3359.3,6.03053351]
[1735494065287,0.75539,3359.4,3359.3,5.27014351]
[1735494065481,1.21149,3359.4,3359.3,2.45254351]
[1735494066081,6.21149,3359.4,3359.3,0.35644351]
[1735494066583,6.21149,3359.4,3359.3,0.13474351]
[1735494067088,6.21149,3359.4,3359.2,7.0075967]
[1735494067089,0.29824,3358.8,3358.7,4.68192837]
[1735494068288,3.51653415,3358.8,3358.4,5.14192837]
[1735494068490,0.29826,3358.6,3358.5,4.37656]
[1735494069191,0.29826,3358.6,3358.5,4.0783]
[1735494070892,0.29826,3358.6,3358.5,0.8705]
[1735494077102,2.34391783,3358.7,3358.5,3.12125508]
[1735494077304,1.64481783,3358.8,3358.7,0.29825]
[1735494077492,0.94571783,3358.8,3358.7,2.54900508]
[1735494077800,3.51653415,3358.9,3358.8,0.29824]
[1735494078501,0.29821,3359.2,3358.8,7.0075967]
[1735494078700,0.29821,3359.2,3359.1,0.29821]
[1735494080298,2.11853415,3359.6,3359.1,2.25075508]
[1735494080500,4.6887122,3359.9,3359.8,0.29815]
[1735494080701,3.2687122,3359.9,3359.8,3.73890508]
[1735494081201,5.84966123,3360.1,3360.0,0.29813]
[1735494081412,5.84966123,3360.1,3360.0,3.50593]
[1735494082201,0.29806,3360.9,3360.7,0.29807]
[1735494082504,0.29806,3360.9,3360.6,1.48808]
[1735494082706,5.84966123,3361.5,3360.7,2.25075508]
[1735494082903,0.29806,3360.9,3360.7,2.25075508]
[1735494083099,0.75954,3361.1,3360.7,2.25075508]
[1735494083301,0.29805,3361.0,3360.8,0.29806]
[1735494083808,0.29806,3360.8,3360.7,2.25075508]
[1735494084207,0.4615,3361.1,3360.6,1.19]
[1735494084411,1.21037,3360.7,3360.6,1.19]
[1735494085706,0.29806,3360.9,3360.7,0.29806]
[1735494085906,0.29805,3361.0,3360.8,2.54881508]
[1735494086304,0.29805,3361.0,3360.8,2.25075508]
[1735494088104,0.4615,3361.1,3360.8,2.25075508]
[1735494088304,0.4615,3361.1,3360.9,0.29806]
[1735494088504,0.4615,3361.1,3361.0,0.29805]
[1735494088915,0.4615,3361.1,3360.8,2.25075508]
[1735494089113,0.4615,3361.1,3360.9,0.29805]
[1735494089613,0.4615,3361.1,3361.0,0.29805]
[1735494090203,0.4615,3361.1,3361.0,0.29555798]
[1735494090912,0.4615,3361.1,3360.9,3.2078]
[1735494090913,0.75954,3361.1,3360.9,3.2078]
[1735494091413,0.75954,3361.1,3361.0,0.29805]
[1735494091414,0.4615,3361.1,3361.0,0.29805]
[1735494093213,0.29803,3361.2,3361.0,0.29805]
[1735494093413,0.29803,3361.2,3361.1,2.25075508]
[1735494094316,3.2078,3361.6,3361.1,2.25075508]
[1735494094517,0.456,3361.5,3361.1,2.54878508]
[1735494094717,0.29802,3361.3,3361.1,2.54878508]
[1735494095412,0.4402,3361.2,3361.1,2.54878508]
[1735494097016,0.456,3361.5,3361.1,2.25075508]
[1735494097316,0.456,3361.5,3361.4,5.75656508]
[1735494098018,0.754,3361.5,3361.4,5.45855508]
[1735494099119,0.754,3361.5,3361.4,2.25075508]
[1735494103620,0.456,3361.5,3361.4,2.25075508]
[1735494103816,0.456,3361.5,3361.4,2.54876508]
[1735494104018,0.456,3361.5,3361.4,5.75656508]
[1735494107613,0.456,3361.5,3361.4,2.54876508]
[1735494108121,0.456,3361.5,3361.4,5.75656508]
[1735494108322,0.456,3361.5,3361.4,2.54876508]
[1735494108926,0.456,3361.5,3361.4,5.75656508]
[1735494111321,0.4652,3361.7,3361.6,0.29799]
[1735494112833,0.4208,3362.0,3361.9,0.29797]
[1735494113125,0.8659,3362.0,3361.9,2.54872508]
[1735494113731,1.16386,3362.0,3361.9,2.54872508]
[1735494114532,1.16386,3362.0,3361.9,2.25075508]
[1735494114824,4.37166,3362.0,3361.9,2.25075508]
[1735494115226,4.37166,3362.0,3361.4,3.2078]
[1735494115227,4.0737,3362.0,3361.4,3.2078]
[1735494117832,0.298,3361.6,3361.5,3.43875508]
[1735494118237,0.298,3361.6,3361.5,3.73675508]
[1735494119835,0.298,3361.6,3361.5,3.43875508]
[1735494120033,0.29803,3361.3,3361.2,2.25075508]
[1735494120930,0.74501,3361.5,3360.8,11.25773472]
[1735494121235,0.74501,3361.5,3360.8,13.5084898]
[1735494121236,0.29806,3360.9,3360.8,13.5084898]
[1735494121836,0.29806,3360.9,3360.8,9.14418126]
[1735494122724,0.29806,3360.9,3360.8,7.95618126]
[1735494123725,0.29805,3361.0,3360.8,7.65812126]
[1735494123935,0.29805,3361.0,3360.9,2.54881508]
[1735494124235,0.29805,3361.0,3360.9,2.25075508]
[1735494124630,0.29805,3361.0,3360.9,2.54881508]
[1735494126036,4.4945,3361.2,3360.9,2.25075508]
[1735494126440,0.29805,3361.1,3360.9,2.54880508]
[1735494126639,4.79253,3361.2,3361.1,0.29804]
[1735494126840,4.4945,3361.2,3361.1,0.29804]
[1735494127140,1.2867,3361.2,3361.1,0.29804]
[1735494127639,0.4233,3361.2,3361.1,0.29804]
[1735494127835,0.4492,3361.7,3361.6,0.29799]
[1735494128137,0.8867,3361.7,3361.6,2.54874508]
[1735494128529,0.4375,3361.7,3361.6,2.54874508]
[1735494128733,0.4348,3361.9,3361.6,5.45855508]
[1735494128935,0.73277,3361.9,3361.8,0.29798]
[1735494129138,0.4348,3361.9,3361.8,0.29798]
[1735494130237,0.29798,3361.8,3361.7,4.96034854]
[1735494130440,0.4348,3361.9,3361.8,0.29798]
[1735494132337,0.29798,3361.8,3361.7,4.66236854]
[1735494133438,0.4348,3361.9,3361.7,4.66236854]
[1735494133635,0.73277,3361.9,3361.8,0.29798]
[1735494133945,0.73277,3361.9,3361.7,4.66236854]
[1735494133946,0.29798,3361.8,3361.7,4.66236854]
[1735494134138,0.4348,3361.9,3361.8,0.29798]
[1735494134439,0.73277,3361.9,3361.8,0.29798]
[1735494135430,0.4348,3361.9,3361.7,4.66236854]
[1735494135630,0.29798,3361.8,3361.7,4.66236854]
[1735494137344,0.4348,3361.9,3361.7,0.29798]
[1735494138338,0.29798,3361.8,3361.7,0.29798]
[1735494138645,0.29798,3361.8,3361.6,12.4521079]
[1735494138845,0.73277,3361.9,3361.6,12.4521079]
[1735494139153,0.73277,3361.9,3361.7,0.29798]
[1735494139743,0.4348,3361.9,3361.7,12.46608942]
[1735494140050,0.29798,3361.8,3361.7,12.46608942]
[1735494140346,0.29798,3361.8,3361.7,12.76406942]
[1735494140745,0.4348,3361.9,3361.7,12.46608942]
[1735494140948,0.73277,3361.9,3361.8,0.29798]
[1735494141546,0.4348,3361.9,3361.8,0.29798]
[1735494141745,0.73546,3362.0,3361.9,0.29797]
[1735494142050,0.73546,3362.0,3361.9,2.54872508]
[1735494142452,0.4375,3362.0,3361.9,2.54872508]
[1735494142649,0.73546,3362.0,3361.9,2.25075508]
[1735494143844,0.73546,3362.0,3361.9,7.72329168]
[1735494144046,0.29796,3362.0,3361.9,7.72329168]
[1735494144253,0.29796,3362.0,3361.9,8.02126168]
[1735494144645,0.29796,3362.1,3362.0,0.29796]
[1735494144853,3.2078,3362.3,3361.9,15.0148045]
[1735494144854,0.29796,3362.0,3361.9,15.0148045]
[1735494145047,3.2078,3362.3,3361.9,14.7168445]
[1735494145247,0.29795,3362.1,3362.0,0.29796]
[1735494145550,0.29796,3362.0,3361.9,15.0148045]
[1735494146149,0.29796,3362.0,3361.9,9.5422679]
[1735494147550,0.29796,3362.0,3361.9,15.01704246]
[1735494149058,0.29796,3362.0,3361.9,12.46832738]
[1735494150350,3.51170139,3362.2,3361.6,10.12982378]
[1735494150556,0.29798,3361.7,3361.6,10.12982378]
[1735494151060,0.29798,3361.7,3361.6,7.8790687]
[1735494151259,0.29798,3361.7,3361.6,4.6712687]
[1735494151455,0.29798,3361.7,3361.6,3.9723687]
[1735494151758,0.29799,3361.6,3361.5,3.9723687]
[1735494152257,0.29799,3361.6,3361.5,3.2734687]
[1735494152554,4.0524,3361.8,3361.3,6.99355282]
[1735494152555,0.29801,3361.4,3361.3,6.99355282]
[1735494152753,3.50581,3361.4,3361.3,6.99355282]
[1735494152952,0.29804,3361.1,3361.0,6.99355282]
[1735494153861,5.29804,3361.1,3361.0,6.75042152]
[1735494154052,5.29804,3361.1,3361.0,2.55732152]
[1735494154655,5.0,3361.1,3360.1,11.57549217]
[1735494154848,0.29812,3360.2,3360.1,11.57549217]
[1735494155857,0.29812,3360.2,3360.1,2.25075508]
[1735494166259,0.29813,3360.0,3359.9,1.6247]
[1735494166466,0.29814,3359.9,3359.8,0.851]
[1735494193684,3.50594,3359.9,3359.8,0.851]
[1735494197588,0.29814,3359.9,3359.8,0.851]
[1735494197783,3.50594,3359.9,3359.8,0.851]
[1735494198990,0.29814,3359.9,3359.8,0.851]
[1735494199286,3.50594,3359.9,3359.8,0.851]
[1735494199986,3.2078,3359.9,3359.4,0.4601]
[1735494200181,0.2982,3359.3,3359.2,0.9288]
[1735494200384,2.25075508,3359.4,3358.7,11.6793278]
[1735494200688,2.25075508,3359.4,3358.7,11.5143302]
[1735494200689,5.75679508,3358.8,3358.7,11.5143302]
[1735494201283,3.50604,3358.8,3358.7,11.5143302]
[1735494202483,3.2078,3358.8,3358.1,2.25075508]
[1735494202789,0.29828,3358.4,3358.1,2.54905508]
[1735494203189,3.2078,3358.8,3358.4,2.25075508]
[1735494203380,3.50604,3358.8,3358.7,2.25075508]
[1735494203688,2.63843879,3358.8,3358.7,2.25075508]
[1735494204489,2.34019879,3358.8,3358.5,0.9065]
[1735494204684,0.29826,3358.6,3358.5,0.9065]
[1735494205077,0.29826,3358.7,3358.5,0.9065]
[1735494206389,0.29826,3358.7,3358.6,0.4588]
[1735494209886,0.29826,3358.7,3357.7,9.36756525]
[1735494209887,5.0,3358.7,3357.7,9.36756525]
[1735494210191,0.29832,3357.9,3357.8,1.3531]
[1735494212786,3.95354,3358.3,3358.0,2.25075508]
[1735494212787,0.2983,3358.2,3358.0,2.25075508]
[1735494214094,0.2983,3358.2,3358.0,2.54906508]
[1735494214291,3.2078,3358.3,3358.0,2.54906508]
[1735494214491,3.2078,3358.3,3358.2,0.29829]
[1735494214697,0.29826,3358.6,3358.1,3.2078]
[1735494214997,0.29825,3358.7,3358.5,2.25075508]
[1735494215194,0.29825,3358.7,3358.6,0.4338]
[1735494215393,0.29825,3358.7,3358.6,0.8669]
[1735494215791,0.29825,3358.7,3358.6,1.3275]
[1735494226599,0.29831,3358.0,3357.9,3.2078]
[1735494228102,0.29831,3358.0,3357.9,4.5361]
[1735494229505,0.29833,3357.8,3357.6,2.54909508]
[1735494229693,0.29833,3357.8,3357.7,0.8908]
[1735494229900,3.2078,3358.3,3357.7,0.8908]
[1735494230096,0.2983,3358.2,3358.0,0.29831]
[1735494230493,3.2078,3358.3,3358.0,0.29831]
[1735494230702,0.29832,3358.0,3357.8,0.29832]
[1735494230893,0.29831,3358.1,3357.9,0.29832]
[1735494231094,3.2078,3358.3,3357.7,0.8908]
[1735494231299,0.29831,3358.0,3357.8,0.29832]
[1735494233909,0.29833,3357.9,3357.7,1.18913]
[1735494234709,0.29833,3357.9,3357.8,0.29833]
[1735494235312,0.29832,3358.0,3357.8,0.29833]
[1735494236799,3.2078,3358.2,3357.7,0.8908]
[1735494237003,0.29831,3358.0,3357.9,0.29832]
[1735494237201,0.29831,3358.0,3357.8,0.29833]
[1735494240608,3.2078,3358.2,3357.7,0.8908]
[1735494240810,0.29833,3357.8,3357.7,1.18914]
[1735494241009,0.29833,3357.8,3357.7,0.8908]
[1735494251612,0.29833,3357.8,3357.7,1.18914]
[1735494253821,5.54799879,3358.2,3357.7,0.8908]
[1735494254029,0.29831,3358.1,3358.0,0.29831]
[1735494255124,0.2983,3358.1,3358.0,0.29831]
[1735494255318,2.63849879,3358.2,3358.0,0.29831]
[1735494255518,2.63849879,3358.2,3357.9,2.25075508]
[1735494255718,2.63849879,3358.2,3358.0,0.29831]
[1735494255924,0.2983,3358.2,3358.0,0.29831]
[1735494256121,2.34019879,3358.3,3357.9,2.25075508]
[1735494256322,2.34019879,3358.3,3358.2,2.54904508]
[1735494256725,2.34019879,3358.3,3358.2,5.75684508]
[1735494256924,2.34019879,3358.3,3358.2,2.54904508]
[1735494257119,2.63848879,3358.3,3358.2,6.62804508]
[1735494257321,2.34019879,3358.3,3358.2,3.12195508]
[1735494257625,3.51029819,3358.4,3358.2,8.63992034]
[1735494257626,0.29829,3358.4,3358.2,8.63992034]
[1735494257824,0.29829,3358.4,3358.3,0.4531]
[1735494258215,3.2078,3358.6,3358.2,6.09087526]
[1735494258523,0.29829,3358.3,3358.2,5.21967526]
[1735494258820,0.2994,3358.5,3358.0,7.44387344]
[1735494258821,2.34019879,3358.5,3358.0,7.44387344]
[1735494259027,0.29829,3358.3,3358.2,0.4286]
[1735494261826,0.29829,3358.3,3358.2,0.72689]
[1735494262423,0.29828,3358.4,3358.2,0.72689]
[1735494262618,0.29828,3358.4,3358.3,0.29829]
[1735494262823,2.63846879,3358.5,3358.2,2.67935508]
[1735494263131,2.63846879,3358.5,3358.4,0.29828]
[1735494263425,2.34019879,3358.5,3358.4,0.29828]
[1735494263630,0.29828,3358.4,3358.3,0.29828]
[1735494263828,0.29827,3358.5,3358.4,0.4487]
[1735494264830,2.63846879,3358.5,3358.4,0.4487]
[1735494267128,2.63846879,3358.5,3358.4,0.74698]
[1735494267831,2.34019879,3358.5,3358.4,0.74698]
[1735494268530,2.63845879,3358.6,3358.4,0.74698]
[1735494270137,0.29826,3358.6,3358.4,0.74698]
[1735494270333,2.34019879,3358.7,3358.4,0.4487]
[1735494270334,0.29827,3358.5,3358.4,0.4487]
[1735494276541,2.63846879,3358.5,3358.4,0.4487]
[1735494278051,0.29827,3358.5,3358.4,0.4487]
[1735494284350,0.29827,3358.5,3358.4,1.5146569]
[1735494286743,2.34019879,3358.6,3358.4,1.5146569]
[1735494286744,2.63846879,3358.6,3358.4,1.5146569]
[1735494286947,2.34019879,3358.6,3358.5,0.4409]
[1735494287146,2.34019879,3358.6,3358.5,0.73917]
[1735494287343,2.63845879,3358.6,3358.5,0.4409]
[1735494288953,2.34019879,3358.6,3358.5,0.73917]
[1735494290555,0.29825,3358.7,3358.6,0.29826]
[1735494290752,0.29825,3358.7,3358.6,1.3642169]
[1735494290952,0.29825,3358.7,3358.6,1.8256169]
[1735494291448,0.29825,3358.7,3358.6,1.5273569]
[1735494291653,0.29825,3358.7,3358.6,6.21104418]
[1735494292959,0.29825,3358.7,3358.6,6.50930418]
[1735494293156,5.54799879,3358.9,3358.7,0.29825]
[1735494293157,0.29825,3358.8,3358.7,0.29825]
[1735494293359,0.29825,3358.8,3358.6,6.50929418]
[1735494293552,0.29825,3358.8,3358.6,6.21104418]
[1735494293862,2.34019879,3358.9,3358.8,0.29824]
[1735494294158,2.34019879,3358.9,3358.8,1.3641969]
[1735494294754,3.51029819,3359.1,3359.0,0.29822]
[1735494294955,3.51029819,3359.1,3359.0,5.6379338]
[1735494295256,3.80850819,3359.1,3359.0,5.6379338]
[1735494295451,3.51029819,3359.1,3359.0,5.6379338]
[1735494295651,3.51029819,3359.1,3359.0,4.5719769]
[1735494296162,0.29821,3359.2,3359.0,9.49291153]
[1735494296360,0.29821,3359.2,3359.1,0.74961]
[1735494296964,3.51029819,3359.7,3359.1,0.4514]
[1735494297257,0.29821,3359.2,3359.1,0.74961]
[1735494297456,0.29821,3359.2,3359.1,12.98587735]
[1735494297855,0.29821,3359.2,3359.1,13.87807735]
[1735494298259,0.29821,3359.2,3359.1,16.12866104]
[1735494298657,0.29821,3359.2,3359.1,15.83045104]
[1735494298856,0.29821,3359.2,3359.1,16.12866104]
[1735494299967,0.29821,3359.2,3359.1,8.56897437]
[1735494301467,0.2982,3359.3,3359.2,0.2982]
[1735494302365,7.01729819,3359.8,3359.1,8.27076437]
[1735494302566,0.29818,3359.5,3359.4,2.54876369]
[1735494302765,0.29816,3359.7,3359.6,0.29817]
[1735494302966,3.2078,3359.8,3359.7,2.97744369]